lending/lending_fUSD_20250121
["ID","MTS","AMOUNT","RATE_DAILY","PERIOD"]
[349871179,1737472234355,-500.0,0.00020144,2]
[349871180,1737472234365,-500.0,0.00020144,2]
[349871181,1737472234376,-500.0,0.00020144,2]
[349871182,1737472234386,-500.0,0.00020144,2]
[349871183,1737472234396,-500.0,0.00020144,2]
[349871184,1737472234407,-500.0,0.00020144,2]
[349871185,1737472234417,-500.0,0.00020144,2]
[349871186,1737472234428,-500.0,0.00020144,2]
[349871187,1737472234438,-435.0118188,0.00020144,2]
[349871188,1737472234447,-500.0,0.00020144,2]
[349871189,1737472234457,-513.63101253,0.00020144,2]
[349871190,1737472234466,-500.0,0.00020144,2]
[349871191,1737472234477,-500.0,0.00020144,2]
[349871192,1737472234488,-500.0,0.00020144,2]
[349871193,1737472234498,-500.0,0.00020144,2]
[349871194,1737472234507,-500.0,0.00020144,2]
[349871195,1737472234516,-500.0,0.00020144,2]
[349871196,1737472234530,-500.0,0.00020144,2]
[349871197,1737472234540,-500.0,0.00020144,2]
[349871198,1737472234550,-500.0,0.00020144,2]
[349871199,1737472234560,-500.0,0.00020144,2]
[349871200,1737472234570,-500.0,0.00020144,2]
[349871201,1737472234580,-150.0,0.0002015,2]
[349871202,1737472234590,-150.0,0.00020154,2]
[349871203,1737472234600,-506.13620497,0.00020168,2]
[349871204,1737472234610,-504.30167973,0.00020168,2]
[349871205,1737472234620,-503.94541376,0.00020168,2]
[349871206,1737472234631,-389.17654142,0.00020168,2]
[349871207,1737472234642,-509.54999404,0.00020168,2]
[349871208,1737472234652,-500.0,0.00020168,2]
[349871209,1737472234662,-502.40432962,0.00020168,2]
[349871210,1737472234673,-509.81950304,0.00020168,2]
[349871211,1737472234684,-502.07436926,0.00020168,2]
[349871212,1737472234693,-633.78268569,0.00020168,2]
[349871213,1737472234703,-503.48666035,0.00020168,2]
[349871214,1737472234713,-500.0,0.00020168,2]
[349871215,1737472234725,-500.0,0.00020168,2]
[349871216,1737472234734,-150.0,0.00020178,2]
[349871217,1737472234743,-1000.0,0.00020195,2]
[349871218,1737472234753,-150.0,0.00020208,2]
[349871219,1737472234762,-174.0,0.00020212,2]
[349871220,1737472234775,-150.0,0.00020242,2]
[349871221,1737472234784,-150.0,0.00020252,2]
[349871222,1737472234793,-153.73917998,0.00020256,2]
[349871229,1737472237965,-150.0,0.00018595,2]
[349871230,1737472237974,-150.0,0.00018834,2]
[349871231,1737472237984,-150.0,0.00018849,2]
[349871232,1737472237994,-150.0,0.00019029,2]
[349871233,1737472238003,-150.0,0.00019348,2]
[349871234,1737472238013,-150.0,0.00019595,2]
[349871235,1737472238023,-150.0,0.00019615,2]
[349871236,1737472238038,-150.0,0.00019946,2]
[349871237,1737472238048,-150.0,0.00020029,2]
[349871238,1737472238059,-311.9583,0.00020043,2]
[349871239,1737472238068,-150.0,0.00020045,2]
[349871240,1737472238079,-788.80082002,0.00020256,2]
[349871241,1737472238089,-150.0,0.00020295,2]
[349871242,1737472238098,-2500.0,0.00020308,2]
[349871243,1737472238107,-1000.0,0.00020315,2]
[349871244,1737472238116,-5000.0,0.00020316,2]
[349871245,1737472238128,-160.25793077,0.00020316,2]
[349871246,1737472238137,-309.46528946,0.00020318,2]
[349871247,1737472238148,-150.0,0.00020326,2]
[349871248,1737472238158,-5000.0,0.00020368,2]
[349871249,1737472238169,-150.0,0.000204,2]
[349871250,1737472238179,-791.69,0.00020415,2]
[349871251,1737472238189,-597.267398,0.00020415,2]
[349871252,1737472238199,-500.0,0.00020415,2]
[349871253,1737472238209,-823.62,0.00020415,2]
[349871254,1737472238219,-500.0,0.00020415,2]
[349871255,1737472238230,-1957.25,0.00020415,2]
[349871256,1737472238240,-500.0,0.00020415,2]
[349871257,1737472238250,-256.27006175,0.00020415,2]
[349871258,1737472238265,-189.08731425,0.00020415,2]
[349871259,1737472238279,-841.49,0.00020415,2]
[349871260,1737472238289,-500.0,0.00020415,2]
[349871261,1737472238300,-500.0,0.00020415,2]
[349871262,1737472238310,-1641.18,0.00020415,2]
[349871263,1737472238320,-823.46,0.00020415,2]
[349871264,1737472238330,-1914.24,0.00020415,2]
[349871265,1737472238341,-1013.54,0.00020415,2]
[349871266,1737472238352,-500.0,0.00020415,2]
[349871267,1737472238362,-1885.44,0.00020415,2]
[349871268,1737472238373,-1055.99,0.00020415,2]
[349871269,1737472238383,-1420.99,0.00020415,2]
[349871270,1737472238394,-726.23,0.00020415,2]
[349871271,1737472238405,-1713.8,0.00020415,2]
[349871272,1737472238415,-1537.16,0.00020415,2]
[349871273,1737472238425,-557.54,0.00020415,2]
[349871274,1737472238435,-643.67,0.00020415,2]
[349871275,1737472238445,-832.29,0.00020415,2]
[349871276,1737472238455,-500.0,0.00020415,2]
[349871277,1737472238465,-1568.78,0.00020415,2]
[349871278,1737472238475,-2343.23,0.00020415,2]
[349871282,1737472238682,-1051.92,0.00020415,2]
[349871283,1737472238693,-883.81,0.00020415,2]
[349871284,1737472238703,-3022.12,0.00020415,2]
[349871285,1737472238712,-1168.38,0.00020415,2]
[349871286,1737472238722,-1863.81,0.00020415,2]
[349871287,1737472238731,-500.0,0.00020415,2]
[349871288,1737472238740,-500.0,0.00020415,2]
[349871289,1737472238750,-500.0,0.00020415,2]
[349871290,1737472238759,-1819.41,0.00020415,2]
[349871291,1737472238768,-1009.79,0.00020415,2]
[349871292,1737472238782,-1600.19,0.00020415,2]
[349871294,1737472238792,-500.0,0.00020415,2]
[349871296,1737472238803,-155.659928,0.00020415,2]
[349871298,1737472238813,-1226.59,0.00020415,2]
[349871300,1737472238823,-6482.85,0.00020415,2]
[349871302,1737472238832,-500.0,0.00020415,2]
[349871304,1737472238842,-744.28,0.00020415,2]
[349871306,1737472238853,-1038.48,0.00020415,2]
[349871308,1737472238864,-2503.09,0.00020415,2]
[349871310,1737472238875,-2652.96,0.00020415,2]
[349871312,1737472238886,-1140.98,0.00020415,2]
[349871314,1737472238898,-635.18,0.00020415,2]
[349871316,1737472238909,-830.17,0.00020415,2]
[349871318,1737472238920,-151.234075,0.00020415,2]
[349871320,1737472238931,-683.23,0.00020415,2]
[349871322,1737472238941,-2263.39,0.00020415,2]
[349871324,1737472238952,-500.0,0.00020415,2]
[349871326,1737472238964,-500.0,0.00020415,2]
[349871328,1737472238975,-500.0,0.00020415,2]
[349871330,1737472238985,-1012.09,0.00020415,2]
[349871332,1737472238995,-500.0,0.00020415,2]
[349871334,1737472239006,-1601.95,0.00020415,2]
[349871336,1737472239016,-500.0,0.00020415,2]
[349871338,1737472239029,-691.32,0.00020415,2]
[349871339,1737472239039,-500.0,0.00020415,2]
[349871342,1737472239048,-500.0,0.00020415,2]
[349871344,1737472239059,-500.0,0.00020415,2]
[349871346,1737472239071,-500.0,0.00020415,2]
[349871348,1737472239080,-2214.68,0.00020415,2]
[349871350,1737472239089,-500.0,0.00020415,2]
[349871352,1737472239100,-2156.78,0.00020415,2]
[349871354,1737472239110,-522.66,0.00020415,2]
[349871356,1737472239121,-500.0,0.00020415,2]
[349871358,1737472239131,-500.0,0.00020416,2]
[349871360,1737472239141,-500.0,0.00020416,2]
[349871362,1737472239151,-500.0,0.00020416,2]
[349871364,1737472239162,-500.0,0.00020416,2]
[349871366,1737472239175,-546.8222062,0.00020416,2]
[349871367,1737472239185,-500.0,0.00020416,2]
[349871368,1737472239195,-500.0,0.00020416,2]
[349871369,1737472239204,-500.0,0.00020416,2]
[349871370,1737472239214,-500.0,0.00020416,2]
[349871371,1737472239223,-500.0,0.00020416,2]
[349871373,1737472239232,-500.0,0.00020416,2]
[349871375,1737472239241,-500.0,0.00020416,2]
[349871377,1737472239251,-356.7040842,0.00020416,2]
[349871379,1737472239260,-500.0,0.00020416,2]
[349871381,1737472239270,-500.0,0.00020416,2]
[349871383,1737472239284,-500.0,0.00020416,2]
[349871385,1737472239294,-500.0,0.00020416,2]
[349871387,1737472239304,-500.0,0.00020416,2]
[349871389,1737472239314,-500.0,0.00020416,2]
[349871391,1737472239323,-500.0,0.00020416,2]
[349871393,1737472239333,-500.0,0.00020416,2]
[349871395,1737472239343,-500.0,0.00020416,2]
[349871397,1737472239352,-500.0,0.00020416,2]
[349871399,1737472239362,-500.0,0.00020416,2]
[349871401,1737472239372,-500.0,0.00020416,2]
[349871403,1737472239382,-492.85898689,0.00020416,2]
[349871405,1737472239392,-500.0,0.00020416,2]
[349871407,1737472239402,-325.98163605,0.00020416,2]
[349871409,1737472239412,-232.69361128,0.00020416,2]
[349871411,1737472239422,-500.0,0.00020416,2]
[349871413,1737472239431,-500.0,0.00020416,2]
[349871415,1737472239441,-500.0,0.00020416,2]
[349871417,1737472239450,-500.0,0.00020416,2]
[349871419,1737472239460,-500.0,0.00020416,2]
[349871420,1737472239470,-500.0,0.00020416,2]
[349871422,1737472239480,-500.0,0.00020416,2]
[349871424,1737472239490,-500.0,0.00020416,2]
[349871426,1737472239499,-500.0,0.00020416,2]
[349871429,1737472239509,-500.0,0.00020416,2]
[349871430,1737472239519,-500.0,0.00020416,2]
[349871432,1737472239532,-500.0,0.00020416,2]
[349871434,1737472239541,-500.0,0.00020416,2]
[349871436,1737472239549,-500.0,0.00020416,2]
[349871438,1737472239559,-200.0,0.00020416,2]
[349871440,1737472239570,-500.0,0.00020416,2]
[349871442,1737472239581,-500.0,0.00020416,2]
[349871444,1737472239591,-500.0,0.00020416,2]
[349871446,1737472239601,-500.0,0.00020416,2]
[349871448,1737472239611,-500.0,0.00020416,2]
[349871450,1737472239621,-637.29034875,0.00020416,2]
[349871452,1737472239635,-500.0,0.00020416,2]
[349871454,1737472239645,-500.0,0.00020416,2]
[349871457,1737472239656,-500.0,0.00020416,2]
[349871458,1737472239667,-527.07983044,0.00020416,2]
[349871460,1737472239677,-201.78386291,0.00020416,2]
[349871463,1737472239687,-500.0,0.00020416,2]
[349871465,1737472239697,-343.9516765,0.00020416,2]
[349871467,1737472239707,-500.0,0.00020416,2]
[349871469,1737472239717,-500.0,0.00020416,2]
[349871471,1737472239727,-500.0,0.00020416,2]
[349871473,1737472239736,-500.0,0.00020416,2]
[349871474,1737472239746,-500.0,0.00020416,2]
[349871477,1737472239755,-500.0,0.00020416,2]
[349871478,1737472239766,-500.0,0.00020416,2]
[349871480,1737472239776,-500.0,0.00020416,2]
[349871482,1737472239786,-500.0,0.00020416,2]
[349871484,1737472239796,-500.0,0.00020416,2]
[349871486,1737472239805,-500.0,0.00020416,2]
[349871487,1737472239814,-500.0,0.00020416,2]
[349871488,1737472239824,-500.0,0.00020416,2]
[349871489,1737472239834,-500.0,0.00020416,2]
[349871490,1737472239844,-500.0,0.00020416,2]
[349871491,1737472239854,-500.0,0.00020416,2]
[349871492,1737472239863,-500.0,0.00020416,2]
[349871493,1737472239874,-500.0,0.00020416,2]
[349871494,1737472239884,-500.0,0.00020416,2]
[349871495,1737472239895,-500.0,0.00020416,2]
[349871496,1737472239905,-500.0,0.00020416,2]
[349871497,1737472239916,-500.0,0.00020416,2]
[349871498,1737472239926,-500.0,0.00020416,2]
[349871499,1737472239935,-500.0,0.00020416,2]
[349871500,1737472239945,-500.0,0.00020416,2]
[349871501,1737472239955,-500.0,0.00020416,2]
[349871502,1737472239964,-500.0,0.00020416,2]
[349871503,1737472239974,-500.0,0.00020416,2]
[349871504,1737472239984,-487.47016505,0.00020416,2]
[349871506,1737472239993,-500.0,0.00020416,2]
[349871507,1737472240003,-500.0,0.00020416,2]
[349871508,1737472240013,-500.0,0.00020416,2]
[349871509,1737472240023,-500.0,0.00020416,2]
[349871510,1737472240034,-500.0,0.00020416,2]
[349871511,1737472240044,-500.0,0.00020416,2]
[349871512,1737472240053,-500.0,0.00020416,2]
[349871513,1737472240063,-500.0,0.00020416,2]
[349871514,1737472240073,-500.0,0.00020416,2]
[349871515,1737472240082,-500.0,0.00020416,2]
[349871516,1737472240092,-500.0,0.00020416,2]
[349871517,1737472240102,-504.18350713,0.00020416,2]
[349871518,1737472240112,-500.0,0.00020416,2]
[349871519,1737472240123,-500.0,0.00020416,2]
[349871520,1737472240132,-500.0,0.00020416,2]
[349871521,1737472240142,-436.21337758,0.00020416,2]
[349871522,1737472240151,-500.0,0.00020416,2]
[349871523,1737472240161,-500.0,0.00020416,2]
[349871524,1737472240171,-500.0,0.00020416,2]
[349871525,1737472240181,-500.0,0.00020416,2]
[349871526,1737472240190,-240.98477002,0.00020416,2]
[349871527,1737472240200,-500.0,0.00020416,2]
[349871528,1737472240209,-500.0,0.00020416,2]
[349871529,1737472240219,-500.0,0.00020416,2]
[349871530,1737472240228,-500.0,0.00020416,2]
[349871531,1737472240237,-500.0,0.00020416,2]
[349871532,1737472240247,-500.0,0.00020416,2]
[349871533,1737472240256,-500.0,0.00020416,2]
[349871534,1737472240266,-500.0,0.00020416,2]
[349871535,1737472240276,-640.28,0.00020416,2]
[349871536,1737472240286,-500.0,0.00020416,2]
[349871537,1737472240295,-500.0,0.00020416,2]
[349871538,1737472240305,-500.0,0.00020416,2]
[349871539,1737472240315,-500.0,0.00020416,2]
[349871540,1737472240325,-500.0,0.00020416,2]
[349871541,1737472240335,-500.0,0.00020416,2]
[349871542,1737472240345,-596.46512503,0.00020416,2]
[349871543,1737472240355,-500.0,0.00020416,2]
[349871544,1737472240365,-500.0,0.00020416,2]
[349871545,1737472240375,-684.26,0.00020416,2]
[349871546,1737472240386,-500.0,0.00020416,2]
[349871547,1737472240396,-500.0,0.00020416,2]
[349871548,1737472240406,-500.0,0.00020416,2]
[349871549,1737472240415,-500.0,0.00020416,2]
[349871550,1737472240426,-159.39353145,0.00020416,2]
[349871551,1737472240435,-500.0,0.00020416,2]
[349871552,1737472240445,-500.0,0.00020416,2]
[349871553,1737472240454,-500.0,0.00020416,2]
[349871554,1737472240464,-500.0,0.00020416,2]
[349871555,1737472240474,-237.4156826,0.00020416,2]
[349871556,1737472240483,-500.0,0.00020416,2]
[349871557,1737472240493,-747.48,0.00020416,2]
[349871558,1737472240503,-500.0,0.00020416,2]
[349871559,1737472240513,-500.0,0.00020416,2]
[349871560,1737472240522,-1662.68,0.00020416,2]
[349871562,1737472240535,-500.0,0.00020416,2]
[349871563,1737472240545,-500.0,0.00020416,2]
[349871564,1737472240554,-514.36641361,0.00020416,2]
[349871565,1737472240564,-500.0,0.00020416,2]
[349871566,1737472240574,-500.0,0.00020416,2]
[349871567,1737472240584,-562.9,0.00020416,2]
[349871568,1737472240594,-500.0,0.00020416,2]
[349871569,1737472240604,-500.0,0.00020416,2]
[349871570,1737472240613,-500.0,0.00020416,2]
[349871571,1737472240623,-500.0,0.00020416,2]
[349871572,1737472240633,-500.0,0.00020416,2]
[349871573,1737472240643,-101.10970367,0.00020416,2]
[349871574,1737472240664,-398.89029633,0.00020416,2]
[349871575,1737472240674,-15.82970367,0.00020416,2]
[349871576,1737472240685,-554.88029633,0.00020416,2]
[349871577,1737472240696,-500.0,0.00020416,2]
[349871578,1737472240706,-500.0,0.00020416,2]
[349871579,1737472240715,-500.0,0.00020416,2]
[349871580,1737472240727,-500.0,0.00020416,2]
[349871581,1737472240737,-500.0,0.00020416,2]
[349871583,1737472240747,-39.99362367,0.00020416,2]
[349871584,1737472240759,-460.00637633,0.00020416,2]
[349871585,1737472240769,-1414.34,0.00020416,2]
[349871586,1737472240781,-1287.97,0.00020416,2]
[349871587,1737472240791,-500.0,0.00020416,2]
[349871588,1737472240800,-500.0,0.00020416,2]
[349871589,1737472240811,-500.0,0.00020416,2]
[349871590,1737472240822,-500.0,0.00020416,2]
[349871591,1737472240831,-500.0,0.00020416,2]
[349871592,1737472240840,-729.89,0.00020416,2]
[349871593,1737472240850,-1421.54,0.00020416,2]
[349871594,1737472240859,-500.0,0.00020416,2]
[349871595,1737472240868,-500.0,0.00020416,2]
[349871596,1737472240878,-508.49426775,0.00020416,2]
[349871597,1737472240888,-500.0,0.00020416,2]
[349871598,1737472240897,-500.0,0.00020416,2]
[349871599,1737472240906,-550.57,0.00020416,2]
[349871600,1737472240915,-500.0,0.00020416,2]
[349871601,1737472240925,-500.0,0.00020416,2]
[349871602,1737472240934,-500.0,0.00020416,2]
[349871603,1737472240944,-1565.96,0.00020416,2]
[349871604,1737472240954,-500.0,0.00020416,2]
[349871605,1737472240964,-503.8234958,0.00020416,2]
[349871606,1737472240973,-934.73,0.00020416,2]
[349871607,1737472240983,-500.0,0.00020416,2]
[349871608,1737472240992,-500.0,0.00020416,2]
[349871609,1737472241001,-500.0,0.00020416,2]
[349871610,1737472241010,-500.0,0.00020416,2]
[349871611,1737472241019,-500.0,0.00020416,2]
[349871612,1737472241031,-500.0,0.00020416,2]
[349871613,1737472241040,-500.0,0.00020416,2]
[349871614,1737472241050,-667.13,0.00020416,2]
[349871615,1737472241059,-507.27398672,0.00020416,2]
[349871616,1737472241069,-500.0,0.00020416,2]
[349871617,1737472241078,-591.74,0.00020416,2]
[349871618,1737472241087,-500.0,0.00020416,2]
[349871619,1737472241096,-500.0,0.00020416,2]
[349871620,1737472241106,-500.0,0.00020416,2]
[349871621,1737472241115,-1973.87,0.00020416,2]
[349871622,1737472241125,-500.0,0.00020416,2]
[349871623,1737472241134,-500.0,0.00020416,2]
[349871624,1737472241143,-500.0,0.00020416,2]
[349871625,1737472241152,-500.0,0.00020416,2]
[349871626,1737472241162,-500.0,0.00020416,2]
[349871627,1737472241171,-500.0,0.00020416,2]
[349871628,1737472241180,-778.42,0.00020416,2]
[349871629,1737472241189,-500.0,0.00020416,2]
[349871630,1737472241198,-1076.98,0.00020416,2]
[349871631,1737472241207,-392.0701443,0.00020416,2]
[349871632,1737472241216,-285.3529995,0.00020416,2]
[349871633,1737472241225,-500.0,0.00020416,2]
[349871634,1737472241234,-1380.57,0.00020416,2]
[349871635,1737472241243,-500.0,0.00020416,2]
[349871636,1737472241253,-500.0,0.00020416,2]
[349871637,1737472241261,-500.0,0.00020416,2]
[349871638,1737472241271,-284.17243776,0.00020416,2]
[349871639,1737472241283,-500.0,0.00020416,2]
[349871640,1737472241292,-500.0,0.00020416,2]
[349871641,1737472241301,-500.0,0.00020416,2]
[349871642,1737472241311,-525.29,0.00020416,2]
[349871643,1737472241320,-500.0,0.00020416,2]
[349871644,1737472241330,-500.0,0.00020416,2]
[349871645,1737472241339,-689.59,0.00020416,2]
[349871646,1737472241348,-500.0,0.00020416,2]
[349871647,1737472241357,-500.0,0.00020416,2]
[349871648,1737472241366,-500.0,0.00020416,2]
[349871649,1737472241375,-1710.22,0.00020416,2]
[349871650,1737472241384,-533.93,0.00020416,2]
[349871651,1737472241393,-500.0,0.00020416,2]
[349871652,1737472241403,-500.0,0.00020416,2]
[349871653,1737472241412,-500.0,0.00020416,2]
[349871654,1737472241421,-500.0,0.00020416,2]
[349871655,1737472241431,-500.0,0.00020416,2]
[349871656,1737472241440,-500.0,0.00020416,2]
[349871657,1737472241450,-1957.17,0.00020416,2]
[349871658,1737472241459,-500.0,0.00020416,2]
[349871659,1737472241468,-292.4861927,0.00020416,2]
[349871660,1737472241477,-500.0,0.00020416,2]
[349871661,1737472241486,-1448.24,0.00020416,2]
[349871662,1737472241495,-500.0,0.00020416,2]
[349871663,1737472241505,-500.0,0.00020416,2]
[349871664,1737472241514,-500.0,0.00020416,2]
[349871665,1737472241523,-500.0,0.00020416,2]
[349871666,1737472241535,-501.11043883,0.00020416,2]
[349871667,1737472241545,-500.0,0.00020416,2]
[349871668,1737472241555,-500.0,0.00020416,2]
[349871669,1737472241565,-429.37848555,0.00020416,2]
[349871670,1737472241574,-500.0,0.00020416,2]
[349871671,1737472241584,-4700.1,0.00020416,2]
[349871672,1737472241593,-500.0,0.00020416,2]
[349871673,1737472241603,-500.0,0.00020416,2]
[349871674,1737472241612,-500.0,0.00020416,2]
[349871675,1737472241621,-500.0,0.00020416,2]
[349871676,1737472241632,-500.0,0.00020416,2]
[349871677,1737472241641,-500.0,0.00020416,2]
[349871678,1737472241653,-500.0,0.00020416,2]
[349871679,1737472241663,-500.0,0.00020416,2]
[349871680,1737472241672,-500.0,0.00020416,2]
[349871681,1737472241683,-666.49,0.00020416,2]
[349871682,1737472241692,-500.0,0.00020416,2]
[349871683,1737472241701,-598.71,0.00020416,2]
[349871684,1737472241710,-500.0,0.00020416,2]
[349871685,1737472241721,-500.0,0.00020416,2]
[349871686,1737472241730,-601.04,0.00020416,2]
[349871687,1737472241739,-500.0,0.00020416,2]
[349871688,1737472241749,-500.0,0.00020416,2]
[349871689,1737472241758,-500.0,0.00020416,2]
[349871690,1737472241767,-500.0,0.00020416,2]
[349871691,1737472241779,-500.0,0.00020416,2]
[349871692,1737472241788,-500.0,0.00020416,2]
[349871693,1737472241797,-4362.29,0.00020416,2]
[349871694,1737472241806,-500.0,0.00020416,2]
[349871695,1737472241815,-500.0,0.00020416,2]
[349871696,1737472241825,-500.0,0.00020416,2]
[349871697,1737472241834,-500.0,0.00020416,2]
[349871698,1737472241843,-500.0,0.00020416,2]
[349871699,1737472241852,-500.0,0.00020417,2]
[349871700,1737472241862,-566.44996397,0.00020417,2]
[349871701,1737472241871,-500.0,0.00020417,2]
[349871702,1737472241880,-500.0,0.00020417,2]
[349871703,1737472241891,-500.0,0.00020417,2]
[349871704,1737472241900,-500.0,0.00020417,2]
[349871705,1737472241910,-500.0,0.00020417,2]
[349871706,1737472241920,-500.0,0.00020417,2]
[349871707,1737472241930,-500.0,0.00020417,2]
[349871708,1737472241939,-500.0,0.00020417,2]
[349871709,1737472241948,-500.0,0.00020417,2]
[349871710,1737472241957,-500.0,0.00020417,2]
[349871711,1737472241966,-595.71,0.00020417,2]
[349871712,1737472241976,-500.0,0.00020417,2]
[349871713,1737472241985,-500.0,0.00020417,2]
[349871714,1737472241995,-500.0,0.00020417,2]
[349871715,1737472242005,-500.0,0.00020417,2]
[349871716,1737472242015,-500.0,0.00020417,2]
[349871717,1737472242025,-500.0,0.00020417,2]
[349871718,1737472242038,-500.0,0.00020417,2]
[349871719,1737472242047,-500.0,0.00020417,2]
[349871720,1737472242057,-500.0,0.00020417,2]
[349871721,1737472242066,-984.81,0.00020417,2]
[349871722,1737472242076,-264.44,0.00020417,2]
[349871723,1737472242085,-587.84,0.00020417,2]
[349871724,1737472242095,-561.29,0.00020417,2]
[349871725,1737472242104,-264.11,0.00020417,2]
[349871726,1737472242114,-500.0,0.00020417,2]
[349871727,1737472242124,-500.0,0.00020417,2]
[349871728,1737472242134,-583.89,0.00020417,2]
[349871729,1737472242143,-598.48,0.00020417,2]
[349871730,1737472242153,-559.85,0.00020417,2]
[349871731,1737472242163,-1260.45,0.00020417,2]
[349871732,1737472242173,-590.98,0.00020417,2]
[349871733,1737472242182,-5314.51,0.00020417,2]
[349871734,1737472242192,-789.98,0.00020417,2]
[349871735,1737472242201,-500.0,0.00020417,2]
[349871736,1737472242211,-500.0,0.00020417,2]
[349871737,1737472242220,-1044.78,0.00020417,2]
[349871738,1737472242229,-3321.03,0.00020417,2]
[349871739,1737472242240,-508.08,0.00020417,2]
[349871740,1737472242249,-710.97,0.00020417,2]
[349871741,1737472242258,-500.0,0.00020417,2]
[349871742,1737472242267,-509.04,0.00020417,2]
[349871743,1737472242277,-872.91,0.00020417,2]
[349871744,1737472242286,-1103.49,0.00020417,2]
[349871745,1737472242295,-500.0,0.00020417,2]
[349871746,1737472242304,-500.0,0.00020417,2]
[349871747,1737472242313,-751.11,0.00020417,2]
[349871748,1737472242322,-1130.19,0.00020417,2]
[349871749,1737472242332,-500.0,0.00020417,2]
[349871750,1737472242341,-1000.0,0.00020417,2]
[349871751,1737472242350,-1099.39,0.00020417,2]
[349871752,1737472242359,-500.0,0.00020417,2]
[349871753,1737472242369,-1092.04,0.00020417,2]
[349871754,1737472242378,-1390.84,0.00020417,2]
[349871755,1737472242388,-500.0,0.00020417,2]
[349871756,1737472242397,-500.0,0.00020417,2]
[349871757,1737472242407,-500.0,0.00020418,2]
[349871758,1737472242417,-500.0,0.00020418,2]
[349871759,1737472242427,-500.0,0.00020418,2]
[349871760,1737472242437,-500.0,0.00020418,2]
[349871761,1737472242446,-500.0,0.00020418,2]
[349871762,1737472242456,-500.0,0.00020418,2]
[349871763,1737472242466,-500.0,0.00020418,2]
[349871764,1737472242475,-500.0,0.00020418,2]
[349871765,1737472242484,-500.0,0.00020418,2]
[349871766,1737472242494,-500.0,0.00020418,2]
[349871767,1737472242503,-500.0,0.00020418,2]
[349871768,1737472242513,-500.0,0.00020418,2]
[349871769,1737472242522,-500.0,0.00020418,2]
[349871770,1737472242533,-500.0,0.00020418,2]
[349871771,1737472242542,-500.0,0.00020418,2]
[349871772,1737472242552,-500.0,0.00020418,2]
[349871773,1737472242562,-500.0,0.00020418,2]
[349871774,1737472242572,-516.69188497,0.00020418,2]
[349871775,1737472242582,-500.0,0.00020418,2]
[349871776,1737472242591,-500.0,0.00020418,2]
[349871777,1737472242601,-500.0,0.00020418,2]
[349871778,1737472242610,-436.73908119,0.00020418,2]
[349871779,1737472242620,-500.0,0.00020418,2]
[349871780,1737472242631,-500.0,0.00020418,2]
[349871781,1737472242644,-500.0,0.00020418,2]
[349871782,1737472242654,-500.0,0.00020418,2]
[349871783,1737472242664,-500.0,0.00020418,2]
[349871786,1737472242841,-500.0,0.00020418,2]